bitfinex/quotes_BTCUSD_20251226
["timestamp","ask_amount","ask_price","bid_price","bid_amount"]
[1766763894220,0.06812765,87056.0,87038.0,0.01516167]
[1766763894679,0.66515821,87050.0,87038.0,0.01516167]
[1766763895041,0.66515821,87050.0,87035.0,0.0116]
[1766763895226,0.66515821,87050.0,87036.0,0.0116]
[1766763896982,0.06812765,87056.0,87050.0,0.000549]
[1766763897402,0.06802,87053.0,87036.0,0.0116]
[1766763897577,0.06802,87053.0,87010.0,0.06212328]
[1766763897578,0.06802,87044.0,87033.0,0.0116]
[1766763897943,0.66515821,87043.0,87033.0,0.0116]
[1766763898172,0.06802,87044.0,87033.0,0.0116]
[1766763899401,0.06802,87044.0,87030.0,0.0116]
[1766763899657,0.06802,87044.0,87020.0,0.12772521]
[1766763899834,0.06802,87044.0,87022.0,0.046]
[1766763900053,0.67664586,87050.0,87022.0,0.046]
[1766763900054,0.01148751,87051.0,87022.0,0.046]
[1766763900285,0.04059681,87085.0,87022.0,0.046]
[1766763900286,0.06830623,87082.0,87059.0,0.01148646]
[1766763900527,0.00028623,87082.0,87069.0,0.01148514]
[1766763900746,0.00028623,87082.0,87040.0,0.66515821]
[1766763900747,0.66515821,87079.0,87070.0,0.0116]
[1766763900973,0.66515821,87079.0,87070.0,0.01170765]
[1766763901185,0.00028623,87082.0,87079.0,0.000549]
[1766763901612,0.07950356,87081.0,87070.0,0.00010765]
[1766763901833,0.000107,87070.0,87054.0,0.0116]
[1766763902051,0.01148527,87068.0,87036.0,0.01148949]
[1766763902264,0.72279805,87070.0,87030.0,0.0624699]
[1766763902265,0.000442,87054.0,87038.0,0.01148923]
[1766763902470,0.06802,87063.0,87040.0,0.01148897]
[1766763902641,0.06802,87063.0,87041.0,0.01148883]
[1766763903016,0.06802,87063.0,87039.0,0.04263381]
[1766763903222,0.06802,87063.0,87039.0,0.0230891]
[1766763903419,0.66515821,87050.0,87029.0,0.01149042]
[1766763903642,0.66515821,87050.0,87031.0,0.01149015]
[1766763903843,0.66515821,87050.0,87032.0,0.0116]
[1766763904040,0.66515821,87050.0,87021.0,0.01149147]
[1766763904284,0.66515821,87050.0,87024.0,0.02365218]
[1766763904498,0.06802,87047.0,87030.0,0.01149029]
[1766763904696,0.66515821,87050.0,87038.0,0.01148923]
[1766763904899,0.66526578,87070.0,87044.0,0.01148844]
[1766763905098,0.07962,87069.0,87044.0,0.0116]
[1766763905415,0.66515821,87060.0,87044.0,0.0116]
[1766763905800,0.66515821,87060.0,87045.0,0.00805342]
[1766763906141,0.068569,87045.0,87028.0,0.04596]
[1766763906259,0.068569,87045.0,87029.0,0.0116]
[1766763906473,0.06802,87045.0,87032.0,0.01149002]
[1766763906674,0.06802,87045.0,87033.0,0.01148989]
[1766763906872,0.06802,87045.0,87030.0,0.01149029]
[1766763907126,0.06802,87045.0,87031.0,0.02758775]
[1766763907344,0.06802,87045.0,87032.0,0.02309002]
[1766763907523,0.06802,87045.0,87032.0,0.0116]
[1766763907720,0.06802,87045.0,87031.0,0.0160976]
[1766763908225,0.06802,87045.0,87032.0,0.0116]
[1766763908845,0.06802,87045.0,87032.0,0.0032529]
[1766763909429,0.000549,87032.0,87015.0,0.05745227]
[1766763909639,0.06802,87045.0,87019.0,0.01149174]
[1766763909857,0.06802,87045.0,87027.0,0.05745306]
[1766763910054,0.06802,87045.0,87030.0,0.01149029]
[1766763910271,0.06802,87045.0,87031.0,0.01149015]
[1766763910467,0.06802,87045.0,87030.0,0.01149029]
[1766763910748,0.06802,87045.0,86977.0,0.1211]
[1766763910749,0.06802,87063.0,87035.0,0.01148963]
[1766763910952,0.06802,87061.0,87036.0,0.00925165]
[1766763911290,0.02308606,87062.0,87036.0,0.00925165]
[1766763911291,0.01148738,87052.0,87036.0,0.00925165]
[1766763911532,0.07962,87055.0,87035.0,0.00010753]
[1766763911739,0.000549,87036.0,87035.0,0.00010753]
[1766763912105,0.06802,87045.0,87035.0,0.00010753]
[1766763912694,0.06802,87045.0,87023.0,0.0116]
[1766763912898,0.06812755,87045.0,87024.0,0.005756]
[1766763913119,0.000549,87024.0,87023.0,0.0116]
[1766763913331,0.06802,87034.0,87023.0,0.0116]
[1766763913493,0.06802,87036.0,87023.0,0.01105]
[1766763914998,0.07458,87033.0,86998.0,0.01149451]
[1766763915198,0.01148976,87034.0,87001.0,0.01149412]
[1766763915199,0.07458,87030.0,87001.0,0.01149412]
[1766763915399,0.07458,87030.0,87002.0,0.01149398]
[1766763915621,0.07458,87030.0,87003.0,0.01150312]
[1766763916234,0.07458,87028.0,87003.0,0.01150312]
[1766763917037,0.01149068,87027.0,87003.0,0.01150312]
[1766763917248,0.07458,87028.0,87003.0,0.01150312]
[1766763917498,0.07458,87028.0,87004.0,0.0116]
[1766763917859,0.07458,87028.0,87005.0,0.12852659]
[1766763918058,0.02465562,87044.0,87010.0,0.01149293]
[1766763918059,0.0116,87032.0,87010.0,0.01149293]
[1766763918286,0.02466118,87044.0,87016.0,0.01149213]
[1766763918485,0.00010755,87045.0,87019.0,0.14001833]
[1766763918486,0.01070311,87043.0,87019.0,0.14001833]
[1766763918685,0.01170755,87045.0,87020.0,0.03820591]
[1766763918889,0.01070422,87044.0,87019.0,0.12852659]
[1766763919109,0.01170755,87045.0,87019.0,0.12852659]
[1766763919515,0.08628755,87045.0,87019.0,0.12852659]
[1766763919739,0.08628755,87045.0,87019.0,0.14001833]
[1766763920141,0.07468755,87045.0,87020.0,0.01149161]
[1766763920297,0.07468755,87045.0,87021.0,0.02895166]
[1766763920505,0.07468755,87045.0,87021.0,0.01746019]
[1766763923792,0.07468755,87045.0,87008.0,0.01149319]
[1766763923793,0.07458,87037.0,87008.0,0.01149319]
[1766763924129,0.07458,87037.0,87012.0,0.01149266]
[1766763924316,0.07458,87037.0,87013.0,0.0116]
[1766763924465,0.07458,87037.0,87007.0,0.06895951]
[1766763924664,0.01148897,87040.0,86934.0,0.56143734]
[1766763924665,0.07458,87029.0,87005.0,0.12852659]
[1766763924985,0.07458,87029.0,87007.0,0.0116]
[1766763925850,0.07458,87029.0,87009.0,0.01149306]
[1766763926062,0.07458,87039.0,87012.0,0.01149266]
[1766763926265,0.07458,87039.0,87014.0,0.0114924]
[1766763926521,0.07458,87039.0,87016.0,0.01149213]
[1766763926697,0.07458,87039.0,87017.0,0.01609996]
[1766763927364,0.07458,87039.0,87015.0,0.0116]
[1766763927901,0.07458,87038.0,87015.0,0.0116]
[1766763929213,0.07458,87033.0,87015.0,0.0116]
[1766763929503,0.07458,87033.0,87006.0,0.08518976]
[1766763929504,0.07458,87033.0,87016.0,0.0116]
[1766763930073,0.07458,87038.0,87016.0,0.02309213]
[1766763930293,0.07458,87038.0,87017.0,0.0103541]
[1766763930497,0.06892685,87049.0,87017.0,0.0103541]
[1766763930498,0.07458,87049.0,87025.0,0.01149095]
[1766763930702,0.07458,87049.0,87038.0,0.00055]
[1766763930703,0.01070325,87048.0,87038.0,0.00055]
[1766763930916,0.07458,87049.0,87037.0,0.0116]
[1766763931141,0.07458,87049.0,87037.0,0.011051]
[1766763931431,0.0116,87054.0,87032.0,1e-08]
[1766763931634,0.0116,87054.0,87018.0,0.046]
[1766763931635,0.01071249,87053.0,87027.0,0.02309068]
[1766763931832,0.08529249,87052.0,87028.0,0.00920372]
[1766763932033,0.07458,87052.0,87028.0,0.00920372]
[1766763932400,0.07458,87050.0,87028.0,0.00920372]
[1766763932824,0.07458,87050.0,87029.0,0.00059842]
[1766763932988,0.07458,87050.0,87029.0,0.01149042]
[1766763933371,0.07458,87050.0,87031.0,0.05745079]
[1766763933717,0.07458,87050.0,87033.0,0.01148989]
[1766763934102,0.0116,87054.0,87033.0,0.01148989]
[1766763934946,0.0116,87054.0,87030.0,0.01723114]
[1766763935154,0.0116,87054.0,87030.0,0.02872143]
[1766763935318,0.0116,87054.0,87031.0,0.0224395]
[1766763935767,0.07458,87068.0,87034.0,0.01148976]
[1766763935967,0.07458,87057.0,87035.0,0.0116]
[1766763936771,0.10838626,87056.0,87035.0,0.0116]
[1766763936971,0.01071941,87055.0,87036.0,0.06893665]
[1766763937268,0.0116,87056.0,87037.0,0.01144664]
[1766763937671,0.0116,87059.0,87037.0,0.01144664]
[1766763937924,0.07458,87050.0,87021.0,0.01149147]
[1766763938087,0.07458,87050.0,87029.0,0.01149042]
[1766763938286,0.08618,87059.0,87032.0,0.05745]
[1766763938490,0.08618,87059.0,87025.0,0.12852659]
[1766763938491,0.08618,87059.0,87033.0,0.0116]
[1766763938686,0.07458,87058.0,87034.0,0.01265048]
[1766763938926,0.07458,87058.0,87033.0,0.0116]
[1766763939097,0.07458,87056.0,87033.0,0.0116]
[1766763939322,0.08606685,87056.0,87033.0,0.0116]
[1766763939599,0.07458,87056.0,87033.0,0.0116]
[1766763940362,0.07458,87056.0,87033.0,0.02308989]
[1766763940587,0.07458,87056.0,87033.0,0.0116]
[1766763941400,0.08606685,87056.0,87033.0,0.0116]
[1766763941649,0.07458,87056.0,87033.0,0.0116]
[1766763942446,0.08606685,87056.0,87033.0,0.0116]
[1766763942775,0.07458,87056.0,87033.0,0.0116]
[1766763943722,0.07458,87056.0,87040.0,0.12852659]
[1766763944661,0.07458,87056.0,87041.0,0.0116]
[1766763946097,0.0116,87059.0,87056.0,0.000549]
[1766763946232,0.00599948,87063.0,87056.0,0.000549]
[1766763946431,0.00599948,87063.0,87042.0,0.14001529]
[1766763946432,0.00599948,87063.0,87042.0,0.12852659]
[1766763946660,0.00599948,87063.0,87043.0,0.02205509]
[1766763948194,0.0116,87065.0,87043.0,0.02205509]
[1766763949042,0.01148633,87060.0,87043.0,0.02205509]
[1766763949186,0.08236633,87060.0,87044.0,0.0116]
[1766763949543,0.00019109,87044.0,87027.0,0.01149068]
[1766763949692,0.00035863,87044.0,87029.0,0.12852659]
[1766763949885,0.00035863,87044.0,87029.0,0.14001701]
[1766763950088,0.00035863,87044.0,87029.0,0.12852659]
[1766763950317,0.00035863,87044.0,87032.0,0.06894015]
[1766763950645,0.00035863,87044.0,87030.0,0.03469563]
[1766763951028,0.00035863,87044.0,87028.0,0.0116]
[1766763951427,0.00035863,87044.0,87030.0,0.01149029]
[1766763951795,0.00035863,87044.0,87031.0,0.01149015]
[1766763952447,0.00035863,87044.0,87032.0,0.01149002]
[1766763952613,6.3e-07,87044.0,87031.0,0.01149015]
[1766763952810,6.3e-07,87044.0,87032.0,0.03469511]
[1766763953457,6.3e-07,87044.0,87033.0,0.0116]
[1766763954662,6.3e-07,87044.0,87032.0,0.03469511]
[1766763954663,0.000549,87033.0,87032.0,0.03469511]
[1766763954964,0.000549,87033.0,87023.0,0.0116]
[1766763955141,0.000549,87033.0,87012.0,0.12852659]
[1766763955142,0.07088,87039.0,87024.0,0.0116]
[1766763955459,0.07088,87038.0,87024.0,0.0116]
[1766763955659,0.07088,87038.0,87024.0,0.011051]
[1766763956004,0.08236923,87038.0,87024.0,0.011051]
[1766763956198,0.08236936,87037.0,87005.0,0.12852659]
[1766763956377,0.07088,87031.0,87006.0,0.0116]
[1766763957163,0.0426689,87037.0,87006.0,0.0116]
[1766763957365,0.07088,87033.0,87006.0,0.0116]
[1766763957606,0.07088,87031.0,87007.0,0.03470001]
[1766763957779,0.07088,87031.0,86988.0,0.22991564]
[1766763957780,0.07088,87025.0,87008.0,0.0116]
[1766763958766,0.07088,87025.0,86995.0,0.01149491]
[1766763958767,0.08237095,87025.0,86995.0,0.01149491]
[1766763958977,0.07088,87018.0,86996.0,0.0116]
[1766763959198,0.07088,87018.0,86997.0,0.0301033]
[1766763959443,0.07088,87018.0,86997.0,0.01860866]
[1766763959971,0.0116,87021.0,86997.0,0.01860866]
[1766763960127,0.07088,87018.0,86998.0,0.0116]
[1766763960338,0.01149213,87016.0,86998.0,0.0116]
[1766763960543,0.07088,87015.0,86994.0,0.0116]
[1766763961591,0.07088,87015.0,86994.0,0.011958]
[1766763961807,0.07088,87015.0,86995.0,0.00924283]
[1766763961930,0.07088,87013.0,86994.0,0.011958]
[1766763962133,0.07088,87011.0,86994.0,0.011958]
[1766763962336,0.07088,87011.0,86994.0,0.000358]
[1766763962819,0.08237279,87011.0,86994.0,0.000358]
[1766763963369,0.07088,87011.0,86994.0,0.000358]
[1766763963761,0.07088,87009.0,86994.0,0.000358]
[1766763963970,0.07088,87020.0,87009.0,0.00055]
[1766763964168,0.07088,87020.0,87002.0,0.0116]
[1766763964350,0.07088,87020.0,87008.0,0.01149319]
[1766763964551,0.046,87035.0,87009.0,0.01149306]
[1766763964760,0.07088,87033.0,87012.0,0.01149266]
[1766763964959,0.07088,87033.0,87010.0,0.00919461]
[1766763965598,0.07088,87033.0,87004.0,0.12852659]
[1766763965807,0.07088,87033.0,87017.0,0.011492]
[1766763966010,0.07088,87043.0,87033.0,0.00055]
[1766763966424,0.07088,87043.0,87018.0,0.14012659]
[1766763966425,0.08248,87049.0,87029.0,0.0116]
[1766763966768,0.07088,87049.0,87029.0,0.0116]
[1766763966959,0.08248,87049.0,87030.0,0.00920377]
[1766763967121,0.08248,87049.0,87030.0,0.000358]
[1766763967346,0.07088,87043.0,87030.0,0.000358]
[1766763968361,0.07088,87040.0,87022.0,0.0116]
[1766763968525,0.07123863,87040.0,87022.0,0.0116]
[1766763968904,0.07088,87051.0,87026.0,0.01149081]
[1766763969134,0.0116,87046.0,87040.0,0.000358]
[1766763969445,0.0116,87046.0,87026.0,0.00035863]
[1766763969829,0.0116,87046.0,87026.0,0.01184944]
[1766763970022,0.0116,87046.0,87027.0,0.01728379]
[1766763970731,0.0116,87046.0,87026.0,0.00035863]
[1766763970732,0.07088,87045.0,87026.0,0.00035863]
[1766763970963,0.05744221,87044.0,87026.0,0.00035863]
[1766763971194,0.07088,87043.0,87027.0,0.0116]
[1766763972603,0.0116,87043.0,87027.0,0.0116]
[1766763972825,0.01148897,87040.0,87027.0,0.0116]
[1766763972949,0.000191,87027.0,87026.0,0.00035863]
[1766763973403,0.0116,87043.0,87026.0,0.00035863]
[1766763974402,0.06835,87042.0,87026.0,0.00035863]
[1766763975993,0.05744061,87047.0,87026.0,0.00035863]
[1766763975994,0.06835,87054.0,87032.0,0.01149002]
[1766763976231,0.06835,87054.0,87040.0,0.01148897]
[1766763976398,0.06835,87054.0,87033.0,0.02563752]
[1766763977151,0.0116,87062.0,87054.0,0.000908]
[1766763977398,0.01071932,87061.0,87054.0,0.000908]
[1766763977549,0.06835,87065.0,87041.0,0.12852659]
[1766763977757,0.06835,87065.0,87042.0,0.02319299]
[1766763977952,0.06835,87065.0,87043.0,0.0116]
[1766763978195,0.06835,87065.0,87047.0,0.01148804]
[1766763978405,0.06835,87065.0,87044.0,0.06952833]
[1766763978406,0.06835,87065.0,87046.0,0.01148817]
[1766763978586,0.06835,87065.0,87047.0,0.01148804]
[1766763978809,0.06835,87065.0,87048.0,0.02740399]
[1766763979475,0.0116,87068.0,87050.0,0.01148765]
[1766763979648,0.02470996,87079.0,87048.0,0.02740399]
[1766763979649,0.06835,87079.0,87057.0,0.01148672]
[1766763979848,0.06845759,87079.0,87068.0,0.00055]
[1766763980195,0.06845759,87079.0,87058.0,0.0116]
[1766763980391,0.06845759,87079.0,87059.0,0.02894602]
[1766763981232,0.00028623,87082.0,87079.0,0.00025041]
[1766763981787,0.0004,87087.0,87079.0,0.00025041]
[1766763982000,0.000137,87087.0,87082.0,0.000286]
[1766763982205,0.000137,87087.0,87082.0,0.00039359]
[1766763982413,0.0004,87093.0,87082.0,0.00039359]
[1766763982626,0.00028413,87083.0,87082.0,0.00010759]
[1766763982742,0.00028413,87083.0,87082.0,0.01046527]
[1766763983182,0.06835,87099.0,87082.0,0.01046527]
[1766763983183,0.06835,87099.0,87082.0,0.00010759]
[1766763983385,0.06835,87099.0,87084.0,0.12852659]
[1766763983588,0.0004,87105.0,87084.0,0.12852659]
[1766763983746,0.0004,87105.0,87084.0,0.14000975]
[1766763984295,0.0004,87105.0,87084.0,0.12852659]
[1766763984442,0.0004,87105.0,87086.0,0.0114829]
[1766763984641,0.0004,87107.0,87092.0,0.01148211]
[1766763984844,0.06875,87121.0,87105.0,0.000253]
[1766763985055,0.0004,87121.0,87106.0,0.0116]
[1766763985488,0.0004,87121.0,87106.0,0.08048116]
[1766763985773,0.0004,87121.0,87107.0,0.00919618]
[1766763986494,0.0004,87121.0,87112.0,0.05739737]
[1766763986706,0.0004,87121.0,87113.0,0.01147934]
[1766763986707,0.000147,87121.0,87113.0,0.01147934]
[1766763987434,0.000147,87121.0,87118.0,0.01147868]
[1766763987617,0.01286054,87136.0,87124.0,0.01147789]
[1766763987843,0.01321903,87136.0,87119.0,0.0116]
[1766763988046,0.01321903,87136.0,87121.0,0.01147828]
[1766763988172,0.01321903,87136.0,87122.0,0.01147815]
[1766763988378,0.01321903,87136.0,87124.0,0.01147789]
[1766763988581,0.01321903,87136.0,87122.0,0.01147815]
[1766763988582,0.0004,87141.0,87135.0,0.01147644]
[1766763988783,0.06835,87151.0,87136.0,0.0116]
[1766763989004,0.06845748,87151.0,87136.0,0.0116]
[1766763989440,0.00170136,87137.0,87136.0,0.0116]
[1766763989801,0.00028758,87137.0,87136.0,0.0116]
[1766763990415,0.00010748,87151.0,87141.0,0.01147565]
[1766763990615,0.00010748,87151.0,87140.0,0.01147578]
[1766763991057,0.00010748,87151.0,87136.0,0.0116]
[1766763991274,0.00010748,87151.0,87137.0,0.00804582]
[1766763991875,0.00010748,87151.0,87138.0,0.01147604]
[1766763992048,0.00010748,87151.0,87143.0,0.12852659]
[1766763992251,0.00010748,87151.0,87144.0,0.0116]
[1766763992903,0.00010748,87151.0,87120.0,0.00805176]
[1766763992904,0.00010748,87151.0,87145.0,0.0116]
[1766763993133,0.00010748,87151.0,87129.0,0.12852659]
[1766763993248,0.00010748,87151.0,87138.0,0.0116]
[1766763993449,0.00010748,87151.0,87125.0,0.01147776]
[1766763993450,0.00010748,87151.0,87139.0,0.0116]
[1766763993864,0.06835,87154.0,87139.0,0.0116]
[1766763994087,0.06835,87154.0,87139.0,0.01170748]
[1766763995916,0.00025162,87145.0,87139.0,0.01170748]
[1766763996366,0.00025162,87145.0,87119.0,0.01147855]
[1766763996508,0.00025162,87145.0,87127.0,0.04592]
[1766763996711,0.06835,87157.0,87145.0,0.00024938]
[1766763997151,0.00025187,87153.0,87135.0,0.0116]
[1766763997556,8.7e-07,87153.0,87140.0,0.12852659]
[1766763997961,0.0116,87170.0,87140.0,0.12852659]
[1766763998250,0.06835,87167.0,87141.0,0.02204607]
[1766764000331,0.06835,87167.0,87142.0,0.0573775]
[1766764000533,0.06835,87167.0,87154.0,0.01147394]
[1766764000738,0.06835,87182.0,87155.0,0.0116]
[1766764001118,0.06882056,87184.0,87158.0,0.01147341]
[1766764001119,1.84e-06,87161.0,87158.0,0.01147341]
[1766764001718,0.00010928,87161.0,87156.0,0.00689718]
[1766764001957,2.8e-07,87161.0,87159.0,0.0116]
[1766764002537,2.8e-07,87161.0,87160.0,0.0116]
[1766764003596,2.8e-07,87161.0,87160.0,0.011239]
[1766764004001,0.07494,87193.0,87164.0,0.01147262]
[1766764004201,0.07494,87193.0,87170.0,0.01147183]
[1766764004403,0.0116,87196.0,87171.0,0.02674704]
[1766764004738,0.0833992,87190.0,87171.0,0.02674704]
[1766764004940,0.07193,87190.0,87171.0,0.02674704]
[1766764005435,0.0833992,87190.0,87171.0,0.02674704]
[1766764005613,0.07193,87190.0,87171.0,0.02674704]
[1766764005810,0.07193,87190.0,87172.0,0.01399296]
[1766764006175,0.14074577,87190.0,87172.0,0.01399296]
[1766764006374,0.08339933,87189.0,87172.0,0.01399296]
[1766764006812,0.0116,87195.0,87172.0,0.01399296]
[1766764006813,0.0116,87198.0,87172.0,0.01399296]
[1766764007048,0.07193,87201.0,87179.0,0.01147065]
[1766764007181,0.01146618,87213.0,87180.0,0.14700899]
[1766764007182,0.07193,87204.0,87180.0,0.14700899]
[1766764007378,0.01146881,87193.0,87180.0,0.00698986]
[1766764007579,0.07193,87190.0,87181.0,0.0116]
[1766764007819,0.07193,87190.0,87180.0,0.00010746]
[1766764007820,0.01146749,87203.0,87180.0,0.01170746]
[1766764008156,0.07193,87203.0,87181.0,0.12852659]
[1766764008345,0.07193,87203.0,87180.0,0.01170746]
[1766764008346,0.07193,87203.0,87185.0,0.12852659]
[1766764008486,0.07193,87213.0,87186.0,0.03123215]
[1766764008679,0.07193,87213.0,87187.0,0.01146959]
[1766764009217,0.07193,87213.0,87186.0,0.07711077]
[1766764009218,0.07193,87209.0,87188.0,0.0116]
[1766764009395,0.07193,87209.0,87183.0,0.01147012]
[1766764009598,0.07193,87209.0,87184.0,0.0116]
[1766764009918,0.07193,87209.0,87185.0,0.01149778]
[1766764011036,0.07193,87209.0,87185.0,0.02296764]
[1766764011199,0.07193,87209.0,87186.0,0.01146973]
[1766764011406,0.00078685,87186.0,87185.0,0.02296764]
[1766764011604,8.5e-07,87186.0,87185.0,0.02296764]
[1766764011842,0.0116,87215.0,87191.0,0.01146907]
[1766764012053,0.07193,87219.0,87195.0,0.01146854]
[1766764012249,0.07193,87219.0,87192.0,0.01156]
[1766764012460,0.07193,87219.0,87193.0,0.01156]
[1766764012461,0.000786,87195.0,87193.0,0.01156]
[1766764012613,0.07193,87215.0,87193.0,0.01156]
[1766764012819,0.07193,87214.0,87193.0,0.01156]
[1766764013266,0.07193,87214.0,87194.0,0.12852659]
[1766764013475,0.07193,87214.0,87195.0,0.01974759]
[1766764013885,0.07193,87230.0,87201.0,0.01146775]
[1766764014079,0.22925266,87240.0,87195.0,0.03121613]
[1766764014080,0.07193,87228.0,87202.0,0.01156]
[1766764014300,0.07193,87228.0,87202.0,0.02302762]
[1766764014509,0.07193,87228.0,87208.0,0.01146683]
[1766764014851,0.07193,87228.0,87210.0,0.01146657]
[1766764015060,0.07193,87228.0,87211.0,0.01156]
[1766764015266,0.07193,87228.0,87212.0,0.01156]
[1766764015472,0.02302302,87237.0,87208.0,0.05733418]
[1766764015473,0.01156,87237.0,87208.0,0.05733418]
[1766764015673,0.03252476,87236.0,87209.0,0.01156]
[1766764015872,0.01146342,87234.0,87209.0,0.01156]
[1766764016081,0.01146368,87232.0,87209.0,0.01156]
[1766764016284,0.01146381,87231.0,87209.0,0.01156]
[1766764016569,0.00646381,87231.0,87209.0,0.011324]
[1766764016953,0.01146381,87231.0,87209.0,0.011324]
[1766764017143,0.05731797,87233.0,87209.0,0.011324]
[1766764017144,0.08339355,87233.0,87209.0,0.011324]
[1766764017346,0.07193,87233.0,87209.0,0.011324]
[1766764017681,0.08339434,87227.0,87209.0,0.011324]
[1766764017897,0.07193,87225.0,87191.0,0.01146907]
[1766764018097,0.07193,87222.0,87196.0,0.01156]
[1766764018509,0.01146578,87216.0,87186.0,0.01146973]
[1766764018713,0.06880121,87208.0,87174.0,0.06882748]
[1766764018892,0.00055,87195.0,87186.0,0.01146973]
[1766764019089,0.00055,87195.0,87187.0,0.01156]
[1766764019312,0.07193,87214.0,87187.0,0.01156]
[1766764019599,0.07193,87214.0,87191.0,0.01146907]
[1766764019800,0.07193,87214.0,87188.0,0.01606705]
[1766764019801,0.07193,87225.0,87195.0,0.01146854]
[1766764020001,0.0833946,87225.0,87196.0,0.01156]
[1766764020295,0.01146526,87220.0,87196.0,0.01156]
[1766764020467,0.02302539,87219.0,87196.0,0.01156]
[1766764020723,0.08339578,87216.0,87196.0,0.01156]
[1766764020898,0.08339578,87216.0,87184.0,0.04588]
[1766764020899,0.00055,87196.0,87184.0,0.04588]
[1766764021052,0.08349,87219.0,87191.0,1e-08]
[1766764021397,0.01146447,87226.0,87191.0,1e-08]
[1766764021398,0.01146447,87226.0,87195.0,0.01146854]
[1766764021621,0.01156,87227.0,87201.0,0.01146775]
[1766764021831,0.01146289,87238.0,87204.0,0.01146736]
[1766764022038,0.01067122,87235.0,87216.0,0.01146578]
[1766764022245,0.07193,87252.0,87221.0,0.01146512]
[1766764022454,0.22919867,87261.0,87217.0,0.01156]
[1766764022455,0.01156,87254.0,87227.0,0.12852659]
[1766764022673,0.07193,87262.0,87242.0,0.09688502]
[1766764022885,0.01156,87266.0,87242.0,0.01156]
[1766764023095,0.07393,87263.0,87234.0,0.05731705]
[1766764023413,0.00179253,87243.0,87235.0,0.01156]
[1766764023594,0.07428836,87263.0,87243.0,0.000549]
[1766764023728,0.08574797,87263.0,87236.0,0.01147601]
[1766764023930,0.01145974,87262.0,87236.0,0.01147601]
[1766764024193,0.08574797,87263.0,87236.0,0.01147601]
[1766764024194,0.00160394,87237.0,87236.0,0.01147601]
[1766764024385,0.00055,87236.0,87222.0,0.01146499]
[1766764024694,0.00055,87236.0,87229.0,0.01156]
[1766764024895,0.01146105,87252.0,87229.0,0.01156]
[1766764025046,0.01146105,87252.0,87227.0,0.17440659]
[1766764025047,0.07193,87250.0,87230.0,0.01156]
[1766764025224,0.01156,87255.0,87231.0,0.01156]
[1766764025426,0.01156,87255.0,87232.0,0.00688828]
[1766764025630,0.01191836,87255.0,87231.0,0.01156]
[1766764025828,0.07193,87254.0,87231.0,0.01156]
[1766764026035,0.01146131,87250.0,87231.0,0.01156]
[1766764026246,0.07193,87253.0,87231.0,0.01156]
[1766764027256,0.07193,87253.0,87224.0,0.01146473]
[1766764027506,0.00035836,87255.0,87229.0,0.01146407]
[1766764027675,0.00035836,87255.0,87230.0,0.01156]
[1766764027889,0.07193,87252.0,87230.0,0.01156]
[1766764028089,0.00035836,87255.0,87230.0,0.01156]
[1766764028090,0.07193,87251.0,87230.0,0.01156]
[1766764028305,0.07193,87251.0,87224.0,0.01146473]
[1766764028306,0.07193,87251.0,87231.0,0.01156]
[1766764029837,0.00035836,87255.0,87234.0,0.12852659]
[1766764029988,0.00035836,87255.0,87235.0,0.01400866]
[1766764030190,0.00035836,87255.0,87238.0,0.01146289]
[1766764030433,0.00035836,87255.0,87241.0,0.0114625]
[1766764030663,0.00035836,87255.0,87237.0,0.06877783]
[1766764030880,0.00035836,87255.0,87238.0,0.04486984]
[1766764031057,0.00035836,87255.0,87234.0,0.12852659]
[1766764031284,0.00035836,87255.0,87234.0,0.13999001]
[1766764031458,0.00035836,87255.0,87234.0,0.12852659]
[1766764031787,0.00035836,87255.0,87235.0,0.01146328]
[1766764032242,0.00035836,87255.0,87234.0,0.12705607]
[1766764032356,0.00035836,87255.0,87235.0,0.02761813]
[1766764032762,0.000549,87235.0,87231.0,0.01156]
[1766764032958,0.01146158,87248.0,87220.0,0.12852659]
[1766764033278,0.07193,87249.0,87221.0,0.13999171]
[1766764033483,0.07193,87249.0,87224.0,0.01146473]
[1766764033849,0.07193,87249.0,87225.0,0.03350133]
[1766764033983,0.07193,87249.0,87226.0,0.01146447]
[1766764034183,0.07193,87249.0,87225.0,0.04496593]
[1766764034382,0.07193,87249.0,87225.0,0.03350133]
[1766764034584,0.01146158,87248.0,87225.0,0.03350133]
[1766764034786,0.01146158,87248.0,87226.0,0.02194679]
[1766764035010,0.00089763,87232.0,87226.0,0.02194679]
[1766764035213,0.07184,87246.0,87203.0,0.12852659]
[1766764035388,0.000549,87226.0,87205.0,0.01146723]
[1766764035612,0.01146315,87236.0,87206.0,0.08291701]
[1766764035817,0.01146315,87236.0,87206.0,0.09438411]
[1766764036015,0.07184,87237.0,87208.0,0.01146683]
[1766764036369,0.07184,87231.0,87206.0,0.09547701]
[1766764036573,0.01146407,87229.0,87209.0,0.01156]
[1766764036808,0.14062412,87230.0,87210.0,0.01156]
[1766764036809,0.08330394,87230.0,87210.0,0.01156]
[1766764037007,0.08330394,87230.0,87211.0,0.01156]
[1766764037008,0.07184,87230.0,87211.0,0.01156]
[1766764037144,0.00035836,87231.0,87211.0,0.14008659]
[1766764037348,0.00035836,87231.0,87202.0,0.04588]
[1766764037349,0.07184,87236.0,87212.0,0.01630207]
[1766764037595,0.07184,87232.0,87213.0,0.01156]
[1766764038205,0.08330368,87232.0,87213.0,0.01156]
[1766764038482,0.000549,87213.0,87203.0,0.04588]
[1766764038690,0.00055,87203.0,87200.0,0.01156]
[1766764038894,0.12852659,87206.0,87200.0,0.01156]
[1766764039071,0.12852659,87206.0,87201.0,0.01156]
[1766764039496,0.07184,87215.0,87192.0,0.01146894]
[1766764039497,0.12852659,87214.0,87192.0,0.01146894]
[1766764039711,0.12852659,87214.0,87193.0,0.02302881]
[1766764039908,0.05732219,87227.0,87194.0,0.0309767]
[1766764039909,0.01146434,87227.0,87194.0,0.0309767]
[1766764040128,0.07184,87228.0,87201.0,0.01146775]
[1766764040292,0.07184,87228.0,87198.0,0.0688085]
[1766764040293,0.01146394,87230.0,87198.0,0.01146815]
[1766764040496,0.00074042,87227.0,87199.0,0.01146802]
[1766764040712,0.02302368,87232.0,87199.0,0.01146802]
[1766764040933,0.0114642,87228.0,87200.0,0.0279018]
[1766764041144,0.06878816,87225.0,87200.0,0.0279018]
[1766764041294,0.07184,87224.0,87200.0,0.0279018]